fUSD/lending_fUSD_20240331
["ID","MTS","AMOUNT","RATE_DAILY","PERIOD"]
[321091517,1711891839600,-199.80953936,0.0005479,4]
[321091518,1711891839609,-235.35674052,0.0005479,4]
[321091519,1711891839619,-406.77867836,0.0005479,2]
[321091520,1711891839629,-155.0,0.0005479,4]
[321091521,1711891839638,-3516.5421611,0.00054791,4]
[321091522,1711891839648,-291.29810648,0.00054791,4]
[321091523,1711891839658,-3505.6650676,0.00054791,4]
[321091524,1711891839668,-186.45093788,0.00054791,4]
[321091525,1711891839678,-227.77830861,0.00054791,4]
[321091526,1711891839688,-12028.08372969,0.00054792,4]
[321091527,1711891839697,-1756.57153444,0.00054792,4]
[321091528,1711891839706,-6737.63328167,0.00054792,4]
[321091529,1711891839715,-155.0,0.00054792,4]
[321091530,1711891839725,-155.0,0.00054792,4]
[321091531,1711891839735,-163.56941415,0.00054792,4]
[321091532,1711891839744,-156.49908672,0.00054792,4]
[321091533,1711891839754,-260.7652174,0.00054792,4]
[321091534,1711891839763,-155.0,0.00054792,4]
[321091535,1711891839773,-273.25470788,0.00054792,4]
[321091536,1711891839783,-266.29532085,0.00054792,40]
[321091537,1711891839793,-156.38178357,0.00054792,4]
[321091538,1711891839802,-155.70778337,0.00054792,4]
[321091539,1711891839811,-155.0,0.00054792,4]
[321091540,1711891839825,-2596.06574678,0.00054792,4]
[321091541,1711891839834,-448.65735592,0.00054792,4]
[321091542,1711891839844,-343.59981422,0.00054792,2]
[321091543,1711891839853,-155.19389774,0.00054792,4]
[321091544,1711891839864,-3200.0,0.00054793,4]
[321091545,1711891839873,-4180.97479576,0.00054793,4]
[321091546,1711891839883,-1132.31305055,0.00054793,120]
[321091547,1711891839893,-560.96943468,0.00054794,120]
[321091548,1711891839903,-500.0,0.00054794,120]
[321091549,1711891839912,-500.0,0.00054794,120]
[321091550,1711891839921,-500.0,0.00054794,120]
[321091551,1711891839930,-500.0,0.00054794,120]
[321091552,1711891839940,-500.0,0.00054794,120]
[321091553,1711891839949,-500.0,0.00054794,16]
[321091554,1711891839959,-500.0,0.00054794,120]
[321091555,1711891839969,-500.0,0.00054794,120]
[321091556,1711891839978,-522.07,0.00054794,120]
[321091557,1711891839989,-500.0,0.00054794,120]
[321091558,1711891839998,-511.46149183,0.00054794,120]
[321091559,1711891840008,-512.39929619,0.00054794,120]
[321091560,1711891840018,-500.0,0.00054794,120]
[321091561,1711891840027,-530.08303492,0.00054794,4]
[321091562,1711891840038,-599.98,0.00054794,120]
[321091563,1711891840047,-2592.64,0.00054794,120]
[321091564,1711891840057,-1044.02,0.00054794,120]
[321091565,1711891840067,-1389.73,0.00054794,120]
[321091566,1711891840076,-513.27,0.00054794,120]
[321091567,1711891840086,-500.0,0.00054794,120]
[321091568,1711891840096,-617.29,0.00054794,120]
[321091569,1711891840106,-500.0,0.00054794,120]
[321091570,1711891840117,-722.32,0.00054794,120]
[321091571,1711891840127,-1123.22,0.00054794,120]
[321091572,1711891840139,-843.12,0.00054794,120]
[321091573,1711891840149,-860.95,0.00054794,120]
[321091574,1711891840161,-500.0,0.00054794,120]
[321091575,1711891840172,-1187.92,0.00054794,120]
[321091576,1711891840183,-893.34,0.00054794,120]
[321091577,1711891840194,-1261.28,0.00054794,120]
[321091578,1711891840203,-1258.95,0.00054794,120]
[321091579,1711891840213,-1496.0,0.00054794,120]
[321091580,1711891840223,-765.62,0.00054794,120]
[321091581,1711891840233,-500.0,0.00054794,120]
[321091582,1711891840243,-849.51,0.00054794,120]
[321091583,1711891840254,-5015.55,0.00054794,120]
[321091584,1711891840263,-500.0,0.00054794,120]
[321091585,1711891840272,-500.0,0.00054794,120]
[321091586,1711891840282,-551.06,0.00054794,120]
[321091587,1711891840291,-500.0,0.00054794,120]
[321091588,1711891840300,-500.0,0.00054794,120]
[321091589,1711891840310,-869.44,0.00054794,120]
[321091590,1711891840320,-1482.15,0.00054794,120]
[321091591,1711891840329,-500.0,0.00054794,120]
[321091592,1711891840339,-500.0,0.00054794,120]
[321091593,1711891840348,-3228.73,0.00054794,120]
[321091594,1711891840358,-500.0,0.00054794,120]
[321091595,1711891840367,-500.0,0.00054794,120]
[321091596,1711891840376,-500.0,0.00054794,120]
[321091597,1711891840385,-2837.49,0.00054794,120]
[321091598,1711891840394,-500.0,0.00054794,120]
[321091599,1711891840404,-500.0,0.00054794,120]
[321091600,1711891840413,-2085.26,0.00054794,120]
[321091601,1711891840422,-500.0,0.00054794,120]
[321091602,1711891840432,-869.2,0.00054794,120]
[321091603,1711891840441,-500.0,0.00054794,120]
[321091604,1711891840451,-500.0,0.00054794,120]
[321091605,1711891840461,-500.0,0.00054794,120]
[321091606,1711891840470,-500.0,0.00054794,120]
[321091607,1711891840480,-7158.59,0.00054794,120]
[321091608,1711891840490,-1503.54,0.00054794,120]
[321091609,1711891840501,-750.07,0.00054794,120]
[321091610,1711891840511,-927.19,0.00054794,120]
[321091611,1711891840520,-1045.16,0.00054794,120]
[321091612,1711891840530,-500.0,0.00054794,120]
[321091613,1711891840539,-875.14,0.00054794,120]
[321091614,1711891840549,-1244.14,0.00054794,120]
[321091615,1711891840559,-5062.17,0.00054794,120]
[321091616,1711891840569,-1792.76,0.00054794,21]
[321091617,1711891840578,-500.0,0.00054794,120]
[321091618,1711891840587,-6300.57,0.00054794,120]
[321091619,1711891840597,-500.0,0.00054794,2]
[321091620,1711891840606,-1215.03,0.00054794,120]
[321091621,1711891840616,-553.77,0.00054794,120]
[321091622,1711891840625,-500.0,0.00054794,120]
[321091623,1711891840636,-556.59,0.00054794,120]
[321091624,1711891840645,-670.07,0.00054794,120]
[321091625,1711891840655,-500.0,0.00054794,120]
[321091626,1711891840665,-4704.39,0.00054794,120]
[321091627,1711891840674,-3653.29,0.00054794,120]
[321091628,1711891840684,-502.24187412,0.00054794,120]
[321091629,1711891840694,-500.0,0.00054794,120]
[321091630,1711891840703,-500.0,0.00054794,120]
[321091631,1711891840713,-500.0,0.00054794,120]
[321091632,1711891840722,-1144.41,0.00054794,120]
[321091633,1711891840732,-500.0,0.00054794,120]
[321091634,1711891840741,-500.0,0.00054794,120]
[321091635,1711891840751,-500.0,0.00054794,120]
[321091636,1711891840761,-500.0,0.00054794,120]
[321091637,1711891840770,-629.47,0.00054794,120]
[321091638,1711891840780,-500.0,0.00054794,120]
[321091639,1711891840790,-755.03,0.00054794,120]
[321091640,1711891840800,-902.55,0.00054794,120]
[321091641,1711891840810,-1074.23,0.00054794,120]
[321091642,1711891840821,-155.86766307,0.000548,120]
[321091643,1711891840831,-5000.0,0.000548,120]
[321091644,1711891840841,-1000.0,0.000548,30]
[321091645,1711891840850,-407.0,0.000548,30]
[321091646,1711891840860,-1044.22696874,0.00054999,120]
[321091647,1711891840870,-6575.42562241,0.00055045,33]
[321091648,1711891840880,-304.16514404,0.00055056,120]
[321091649,1711891840889,-500.0,0.00055068,120]
[321091650,1711891840899,-500.0,0.00055068,120]
[321091651,1711891840909,-546.03402167,0.00055068,120]
[321091652,1711891840920,-500.0,0.00055068,120]
[321091653,1711891840930,-429.10278338,0.00055068,120]
[321091654,1711891840941,-500.0,0.00055068,16]
[321091655,1711891840951,-500.0,0.00055068,120]
[321091656,1711891840963,-500.0,0.00055068,120]
[321091657,1711891840973,-522.07,0.00055068,120]
[321091658,1711891840982,-500.0,0.00055068,120]
[321091659,1711891840994,-599.98,0.00055068,120]
[321091660,1711891841004,-2592.64,0.00055068,120]
[321091661,1711891841014,-1044.02,0.00055068,120]
[321091662,1711891841024,-1000.0,0.00055068,120]
[321091663,1711891841034,-1389.73,0.00055068,120]
[321091664,1711891841044,-513.27,0.00055068,120]
[321091665,1711891841054,-404.2,0.00055068,120]
[321091666,1711891841064,-617.29,0.00055068,120]
[321091667,1711891841074,-500.0,0.00055068,120]
[321091668,1711891841084,-722.32,0.00055068,120]
[321091669,1711891841094,-1123.22,0.00055068,120]
[321091670,1711891841103,-843.12,0.00055068,120]
[321091671,1711891841113,-860.95,0.00055068,120]
[321091672,1711891841123,-289.91,0.00055068,120]
[321091673,1711891841133,-1187.92,0.00055068,120]
[321091674,1711891841143,-893.34,0.00055068,120]
[321091675,1711891841154,-1261.28,0.00055068,120]
[321091676,1711891841163,-1258.95,0.00055068,120]
[321091677,1711891841173,-1496.0,0.00055068,120]
[321091678,1711891841184,-765.62,0.00055068,120]
[321091679,1711891841194,-500.0,0.00055068,120]
[321091680,1711891841205,-849.51,0.00055068,120]
[321091681,1711891841215,-5015.55,0.00055068,120]
[321091682,1711891841226,-500.0,0.00055068,120]
[321091683,1711891841236,-500.0,0.00055068,120]
[321091684,1711891841247,-551.06,0.00055068,120]
[321091685,1711891841257,-500.0,0.00055068,120]
[321091686,1711891841267,-500.0,0.00055068,120]
[321091687,1711891841277,-869.44,0.00055068,120]
[321091688,1711891841287,-1482.15,0.00055068,120]
[321091689,1711891841298,-500.0,0.00055068,120]
[321091690,1711891841308,-398.74762219,0.00055068,120]
[321091691,1711891841319,-3228.73,0.00055068,120]
[321091692,1711891841480,-500.0,0.00055068,120]
[321091693,1711891841516,-500.0,0.00055068,120]
[321091694,1711891841525,-500.0,0.00055068,120]
[321091695,1711891841535,-2837.49,0.00055068,120]
[321091696,1711891841546,-500.0,0.00055068,120]
[321091697,1711891841556,-500.0,0.00055068,120]
[321091698,1711891841565,-2085.26,0.00055068,120]
[321091699,1711891841575,-500.0,0.00055068,120]
[321091700,1711891841585,-869.2,0.00055068,120]
[321091701,1711891841594,-500.0,0.00055068,120]
[321091702,1711891841604,-500.0,0.00055068,120]
[321091703,1711891841613,-500.0,0.00055068,120]
[321091704,1711891841623,-7158.59,0.00055068,120]
[321091705,1711891841633,-1503.54,0.00055068,120]
[321091706,1711891841642,-750.07,0.00055068,120]
[321091707,1711891841653,-927.19,0.00055068,120]
[321091708,1711891841662,-1045.16,0.00055068,120]
[321091709,1711891841672,-500.0,0.00055068,120]
[321091710,1711891841681,-875.14,0.00055068,120]
[321091711,1711891841691,-1244.14,0.00055068,120]
[321091712,1711891841701,-5062.17,0.00055068,120]
[321091714,1711891841711,-1792.76,0.00055068,21]
[321091716,1711891841720,-500.0,0.00055068,120]
[321091718,1711891841730,-6300.57,0.00055068,120]
[321091720,1711891841739,-500.0,0.00055068,2]
[321091722,1711891841749,-553.77,0.00055068,120]
[321091723,1711891841759,-1215.03,0.00055068,120]
[321091725,1711891841769,-556.59,0.00055068,120]
[321091728,1711891841779,-670.07,0.00055068,120]
[321091729,1711891841789,-500.0,0.00055068,120]
[321091731,1711891841798,-4704.39,0.00055068,120]
[321091733,1711891841809,-3653.29,0.00055068,120]
[321091735,1711891841820,-500.0,0.00055068,120]
[321091737,1711891841832,-500.0,0.00055068,120]
[321091740,1711891841841,-180.36,0.00055068,120]
[321091742,1711891841851,-1144.41,0.00055068,120]
[321091744,1711891841860,-500.0,0.00055068,120]
[321091746,1711891841870,-500.0,0.00055068,120]
[321091748,1711891841880,-500.0,0.00055068,120]
[321091750,1711891841889,-500.0,0.00055068,120]
[321091752,1711891841899,-755.03,0.00055068,120]
[321091754,1711891841908,-902.55,0.00055068,120]
[321091756,1711891841918,-1074.23,0.00055068,120]
[321091758,1711891841928,-2277.0,0.00055278,117]
[321091759,1711891841937,-155.0,0.00055336,4]
[321091760,1711891841946,-500.0,0.00055342,120]
[321091761,1711891841956,-500.0,0.00055342,120]
[321091762,1711891841966,-500.0,0.00055342,16]
[321091763,1711891841975,-500.0,0.00055342,120]
[321091764,1711891841984,-500.0,0.00055342,120]
[321091765,1711891841994,-522.07,0.00055342,120]
[321091766,1711891842004,-352.0433536,0.00055342,120]
[321091767,1711891842015,-599.98,0.00055342,120]
[321091768,1711891842025,-2592.64,0.00055342,120]
[321091769,1711891842035,-1044.02,0.00055342,120]
[321091770,1711891842044,-1389.73,0.00055342,120]
[321091771,1711891842054,-513.27,0.00055342,120]
[321091772,1711891842064,-617.29,0.00055342,120]
[321091773,1711891842074,-500.0,0.00055342,120]
[321091774,1711891842083,-722.32,0.00055342,120]
[321091775,1711891842093,-1123.22,0.00055342,120]
[321091776,1711891842102,-843.12,0.00055342,120]
[321091777,1711891842112,-860.95,0.00055342,120]
[321091778,1711891842121,-1187.92,0.00055342,120]
[321091779,1711891842131,-893.34,0.00055342,120]
[321091780,1711891842140,-1261.28,0.00055342,120]
[321091781,1711891842150,-1258.95,0.00055342,120]
[321091782,1711891842160,-1496.0,0.00055342,120]
[321091783,1711891842170,-765.62,0.00055342,120]
[321091784,1711891842180,-500.0,0.00055342,120]
[321091785,1711891842189,-849.51,0.00055342,120]
[321091786,1711891842198,-5015.55,0.00055342,120]
[321091787,1711891842207,-500.0,0.00055342,120]
[321091788,1711891842216,-500.0,0.00055342,120]
[321091789,1711891842226,-551.06,0.00055342,120]
[321091790,1711891842235,-500.0,0.00055342,120]
[321091791,1711891842245,-500.0,0.00055342,120]
[321091792,1711891842255,-869.44,0.00055342,120]
[321091793,1711891842264,-1482.15,0.00055342,120]
[321091794,1711891842274,-500.0,0.00055342,120]
[321091795,1711891842284,-3228.73,0.00055342,120]
[321091796,1711891842293,-500.0,0.00055342,120]
[321091797,1711891842302,-500.0,0.00055342,120]
[321091798,1711891842311,-2837.49,0.00055342,120]
[321091799,1711891842321,-500.0,0.00055342,120]
[321091800,1711891842330,-500.0,0.00055342,120]
[321091801,1711891842339,-2085.26,0.00055342,120]
[321091802,1711891842348,-500.0,0.00055342,120]
[321091804,1711891842358,-869.2,0.00055342,120]
[321091805,1711891842367,-500.0,0.00055342,120]
[321091807,1711891842377,-500.0,0.00055342,120]
[321091808,1711891842391,-500.0,0.00055342,120]
[321091809,1711891842401,-7158.59,0.00055342,120]
[321091810,1711891842410,-1503.54,0.00055342,120]
[321091811,1711891842419,-750.07,0.00055342,120]
[321091812,1711891842428,-927.19,0.00055342,120]
[321091813,1711891842437,-1045.16,0.00055342,120]
[321091814,1711891842447,-321.50102216,0.00055342,120]
[321091815,1711891842456,-875.14,0.00055342,120]
[321091816,1711891842466,-1244.14,0.00055342,120]
[321091817,1711891842475,-5062.17,0.00055342,120]
[321091818,1711891842485,-1792.76,0.00055342,21]
[321091819,1711891842494,-500.0,0.00055342,120]
[321091820,1711891842503,-6300.57,0.00055342,120]
[321091821,1711891842513,-500.0,0.00055342,2]
[321091822,1711891842522,-1215.03,0.00055342,120]
[321091823,1711891842531,-553.77,0.00055342,120]
[321091824,1711891842541,-556.59,0.00055342,120]
[321091825,1711891842551,-670.07,0.00055342,120]
[321091826,1711891842560,-500.0,0.00055342,120]
[321091827,1711891842569,-4704.39,0.00055342,120]
[321091828,1711891842579,-3653.29,0.00055342,120]
[321091829,1711891842588,-500.0,0.00055342,120]
[321091830,1711891842598,-500.0,0.00055342,120]
[321091831,1711891842608,-1144.41,0.00055342,120]
[321091832,1711891842618,-500.0,0.00055342,120]
[321091833,1711891842628,-500.0,0.00055342,120]
[321091834,1711891842637,-500.0,0.00055342,120]
[321091835,1711891842646,-500.0,0.00055342,120]
[321091837,1711891842656,-755.03,0.00055342,120]
[321091838,1711891842666,-902.55,0.00055342,120]
[321091839,1711891842676,-1074.23,0.00055342,120]
[321091840,1711891842685,-996.18,0.00055425,2]
[321091841,1711891842695,-2505.41159512,0.00055564,4]
[321091842,1711891842705,-437.90281178,0.00055586,4]
[321091843,1711891842714,-193.81106388,0.00055612,4]
[321091844,1711891842723,-225.39623599,0.00055612,4]
[321091845,1711891842733,-155.66008014,0.00055612,4]
[321091846,1711891842743,-603.65498531,0.00055612,60]
[321091847,1711891842753,-253.92224754,0.00055613,4]
[321091848,1711891842762,-155.0,0.00055613,4]
[321091849,1711891842771,-347.53310012,0.00055613,4]
[321091850,1711891842781,-155.0,0.00055613,4]
[321091851,1711891842790,-1337.7936167,0.00055614,4]
[321091852,1711891842799,-218.12076489,0.00055614,4]
[321091853,1711891842809,-2064.77373334,0.00055614,4]
[321091854,1711891842823,-283.70619433,0.00055614,2]
[321091855,1711891842833,-666.0,0.00055615,120]
[321091856,1711891842842,-500.0,0.00055616,120]
[321091857,1711891842851,-500.0,0.00055616,120]
[321091858,1711891842862,-500.0,0.00055616,16]
[321091859,1711891842871,-491.52425633,0.00055616,120]
[321091860,1711891842881,-500.0,0.00055616,120]
[321091861,1711891842891,-522.07,0.00055616,120]
[321091862,1711891842901,-599.98,0.00055616,120]
[321091863,1711891842910,-2592.64,0.00055616,120]
[321091864,1711891842920,-1044.02,0.00055616,120]
[321091865,1711891842929,-1389.73,0.00055616,120]
[321091866,1711891842938,-513.27,0.00055616,120]
[321091867,1711891842948,-617.29,0.00055616,120]
[321091868,1711891842957,-500.0,0.00055616,120]
[321091869,1711891842966,-722.32,0.00055616,120]
[321091870,1711891842976,-1123.22,0.00055616,120]
[321091871,1711891842985,-843.12,0.00055616,120]
[321091872,1711891842994,-860.95,0.00055616,120]
[321091873,1711891843003,-1187.92,0.00055616,120]
[321091874,1711891843013,-893.34,0.00055616,120]
[321091875,1711891843022,-1261.28,0.00055616,120]
[321091876,1711891843031,-1258.95,0.00055616,120]
[321091877,1711891843041,-1496.0,0.00055616,120]
[321091878,1711891843050,-765.62,0.00055616,120]
[321091879,1711891843060,-500.0,0.00055616,120]
[321091880,1711891843070,-849.51,0.00055616,120]
[321091881,1711891843080,-5015.55,0.00055616,120]
[321091882,1711891843089,-500.0,0.00055616,120]
[321091883,1711891843098,-500.0,0.00055616,120]
[321091884,1711891843108,-551.06,0.00055616,120]
[321091885,1711891843117,-500.0,0.00055616,120]
[321091886,1711891843126,-500.0,0.00055616,120]
[321091887,1711891843136,-869.44,0.00055616,120]
[321091888,1711891843145,-1482.15,0.00055616,120]
[321091889,1711891843155,-500.0,0.00055616,120]
[321091890,1711891843165,-3228.73,0.00055616,120]
[321091891,1711891843174,-500.0,0.00055616,120]
[321091892,1711891843184,-500.0,0.00055616,120]
[321091893,1711891843193,-2837.49,0.00055616,120]
[321091894,1711891843204,-500.0,0.00055616,120]
[321091895,1711891843213,-500.0,0.00055616,120]
[321091896,1711891843223,-2085.26,0.00055616,120]
[321091897,1711891843233,-500.0,0.00055616,120]
[321091898,1711891843244,-869.2,0.00055616,120]
[321091899,1711891843253,-500.0,0.00055616,120]
[321091901,1711891843262,-500.0,0.00055616,120]
[321091903,1711891843271,-500.0,0.00055616,120]
[321091905,1711891843281,-7158.59,0.00055616,120]
[321091906,1711891843290,-1503.54,0.00055616,120]
[321091907,1711891843300,-750.07,0.00055616,120]
[321091908,1711891843309,-927.19,0.00055616,120]
[321091909,1711891843318,-1045.16,0.00055616,120]
[321091910,1711891843327,-875.14,0.00055616,120]
[321091911,1711891843336,-1244.14,0.00055616,120]
[321091912,1711891843345,-5062.17,0.00055616,120]
[321091913,1711891843355,-1792.76,0.00055616,21]
[321091914,1711891843364,-500.0,0.00055616,120]
[321091915,1711891843373,-6300.57,0.00055616,120]
[321091916,1711891843383,-500.0,0.00055616,2]
[321091917,1711891843392,-553.77,0.00055616,120]
[321091918,1711891843400,-1215.03,0.00055616,120]
[321091919,1711891843410,-556.59,0.00055616,120]
[321091920,1711891843419,-670.07,0.00055616,120]
[321091921,1711891843428,-500.0,0.00055616,120]
[321091922,1711891843438,-4704.39,0.00055616,120]
[321091923,1711891843446,-3653.29,0.00055616,120]
[321091924,1711891843455,-500.0,0.00055616,120]
[321091925,1711891843465,-500.0,0.00055616,120]
[321091926,1711891843475,-1144.41,0.00055616,120]
[321091927,1711891843485,-500.0,0.00055616,120]
[321091928,1711891843495,-500.0,0.00055616,120]
[321091929,1711891843504,-500.0,0.00055616,120]
[321091930,1711891843514,-637.2,0.00055616,120]
[321091931,1711891843524,-755.03,0.00055616,120]
[321091932,1711891843533,-902.55,0.00055616,120]
[321091933,1711891843544,-1074.23,0.00055616,120]
[321091934,1711891843553,-805.24113727,0.0005579,2]
[321091935,1711891843562,-611.17457272,0.00055888,4]
[321091936,1711891843571,-2205.12877017,0.00055888,4]
[321091937,1711891843580,-269.31706662,0.00055888,4]
[321091938,1711891843589,-1697.07235152,0.00055888,4]
[321091939,1711891843598,-260.60463388,0.00055888,4]
[321091940,1711891843608,-332.8031264,0.00055888,4]
[321091941,1711891843617,-2456.26805018,0.00055888,4]
[321091942,1711891843626,-681.11780197,0.00055888,4]
[321091943,1711891843635,-1217.08724674,0.00055888,4]
[321091944,1711891843644,-484.23187478,0.00055888,4]
[321091945,1711891843653,-5941.50056652,0.00055888,4]
[321091946,1711891843662,-307.22204314,0.00055888,4]
[321091947,1711891843672,-163.31261407,0.00055889,4]
[321091948,1711891843681,-207.50942169,0.00055889,4]
[321091949,1711891843690,-3014.81305239,0.00055889,4]
[321091950,1711891843699,-364.83826288,0.0005589,120]
[321091951,1711891843708,-500.0,0.0005589,120]
[321091952,1711891843717,-500.0,0.0005589,16]
[321091953,1711891843726,-500.0,0.0005589,120]
[321091954,1711891843736,-522.07,0.0005589,120]
[321091955,1711891843745,-599.98,0.0005589,120]
[321091956,1711891843755,-2592.64,0.0005589,120]
[321091957,1711891843765,-1044.02,0.0005589,120]
[321091958,1711891843811,-1000.0,0.0005589,120]
[321091959,1711891843822,-1389.73,0.0005589,120]
[321091960,1711891843833,-513.27,0.0005589,120]
[321091961,1711891843841,-617.29,0.0005589,120]
[321091962,1711891843851,-500.0,0.0005589,120]
[321091963,1711891843860,-722.32,0.0005589,120]
[321091964,1711891843870,-1123.22,0.0005589,120]
[321091965,1711891843879,-843.12,0.0005589,120]
[321091966,1711891843889,-860.95,0.0005589,120]
[321091967,1711891843900,-1187.92,0.0005589,120]
[321091968,1711891843910,-893.34,0.0005589,120]
[321091969,1711891843919,-1261.28,0.0005589,120]
[321091970,1711891843928,-1258.95,0.0005589,120]
[321091971,1711891843937,-1496.0,0.0005589,120]
[321091972,1711891843946,-765.62,0.0005589,120]
[321091973,1711891843955,-500.0,0.0005589,120]
[321091974,1711891843964,-849.51,0.0005589,120]
[321091975,1711891843974,-5015.55,0.0005589,120]
[321091976,1711891843984,-547.38,0.0005589,120]
[321091977,1711891843995,-500.0,0.0005589,120]
[321091978,1711891844005,-551.06,0.0005589,120]
[321091979,1711891844013,-500.0,0.0005589,120]
[321091980,1711891844023,-500.0,0.0005589,120]
[321091981,1711891844032,-869.44,0.0005589,120]
[321091982,1711891844042,-1482.15,0.0005589,120]
[321091983,1711891844051,-500.0,0.0005589,120]
[321091984,1711891844060,-3228.73,0.0005589,120]
[321091985,1711891844070,-500.0,0.0005589,120]
[321091986,1711891844079,-500.0,0.0005589,120]
[321091987,1711891844089,-2837.49,0.0005589,120]
[321091988,1711891844098,-500.0,0.0005589,120]
[321091989,1711891844107,-500.0,0.0005589,120]
[321091990,1711891844116,-2085.26,0.0005589,120]
[321091991,1711891844125,-500.0,0.0005589,120]
[321091992,1711891844135,-869.2,0.0005589,120]
[321091993,1711891844144,-648.58,0.0005589,120]
[321091994,1711891844154,-500.0,0.0005589,120]
[321091995,1711891844163,-406.54,0.0005589,120]
[321091996,1711891844172,-7158.59,0.0005589,120]
[321091997,1711891844182,-1503.54,0.0005589,120]
[321091998,1711891844191,-750.07,0.0005589,120]
[321091999,1711891844200,-927.19,0.0005589,120]
[321092000,1711891844209,-1045.16,0.0005589,120]
[321092001,1711891844218,-875.14,0.0005589,120]
[321092002,1711891844227,-1244.14,0.0005589,120]
[321092003,1711891844236,-5062.17,0.0005589,120]
[321092004,1711891844246,-1792.76,0.0005589,21]
[321092005,1711891844255,-500.0,0.0005589,120]
[321092006,1711891844265,-6300.57,0.0005589,120]
[321092007,1711891844274,-500.0,0.0005589,2]
[321092008,1711891844283,-553.77,0.0005589,120]
[321092009,1711891844292,-1215.03,0.0005589,120]
[321092010,1711891844301,-556.59,0.0005589,120]
[321092011,1711891844310,-670.07,0.0005589,120]
[321092012,1711891844319,-500.0,0.0005589,120]
[321092013,1711891844329,-4704.39,0.0005589,120]
[321092014,1711891844338,-3653.29,0.0005589,120]
[321092015,1711891844349,-500.0,0.0005589,120]
[321092016,1711891844359,-500.0,0.0005589,120]
[321092017,1711891844369,-1144.41,0.0005589,120]
[321092018,1711891844378,-500.0,0.0005589,120]
[321092019,1711891844387,-500.0,0.0005589,120]
[321092020,1711891844396,-500.0,0.0005589,120]
[321092021,1711891844405,-755.03,0.0005589,120]
[321092022,1711891844414,-902.55,0.0005589,120]
[321092023,1711891844423,-1074.23,0.0005589,120]
[321092024,1711891844432,-1132.40581556,0.00055917,2]
[321092025,1711891844441,-26636.70594254,0.00055966,2]
[321092026,1711891844450,-8906.64046723,0.00055966,2]
[321092027,1711891844459,-500.0,0.00056164,120]
[321092028,1711891844468,-500.0,0.00056164,16]
[321092029,1711891844477,-500.0,0.00056164,120]
[321092030,1711891844486,-522.07,0.00056164,120]
[321092031,1711891844495,-599.98,0.00056164,120]
[321092032,1711891844504,-2592.64,0.00056164,120]
[321092033,1711891844513,-1044.02,0.00056164,120]
[321092034,1711891844522,-1389.73,0.00056164,120]
[321092035,1711891844531,-513.27,0.00056164,120]
[321092036,1711891844540,-617.29,0.00056164,120]
[321092037,1711891844548,-500.0,0.00056164,120]
[321092038,1711891844557,-722.32,0.00056164,120]
[321092039,1711891844566,-1123.22,0.00056164,120]
[321092040,1711891844575,-843.12,0.00056164,120]
[321092041,1711891844583,-860.95,0.00056164,120]
[321092042,1711891844593,-1187.92,0.00056164,120]
[321092043,1711891844601,-893.34,0.00056164,120]
[321092044,1711891844610,-1261.28,0.00056164,120]
[321092045,1711891844619,-1258.95,0.00056164,120]